Cogmind - Beta 16 @@@ ROGUE MODE // 2025.11.01 @ 20:27:18 Player: JB Result: Destroyed by G-34 Mercenary with Small Laser Performance ------------- Evolutions (1) 500 Regions Visited (2) 400 Robots Destroyed (29) 145 Value Destroyed (688) 688 Prototype IDs (1) 20 Alien Tech Used (0) 0 Bonus (0) 0 TOTAL SCORE: 1753 Bonus ------- None Cogmind --------- Core Integrity 0/400 Matter 242/300 Energy 160/160 System Corruption 0% Temperature Cool (11) Movement Core (200) Ox3 Location -9/Materials Parts ------- > --- POWER (1) -------- Light Nuclear Core > --- PROPULSION (2) --- (None) > --- UTILITY (4) ------ Large Storage Unit Weight Redist. System > --- WEAPON (2) ------- Light Assault Rifle Improved Light Cannon > --- INVENTORY (15) --- Improved Flight Unit Improved Flight Unit Improved Light Cannon Improved Light Cannon Peak State ------------ > --- POWER ------------ Light Nuclear Core > --- PROPULSION ------- Wheel Wheel > --- UTILITY ---------- Large Storage Unit Weight Redist. System > --- WEAPON ----------- Light Assault Rifle Improved Light Cannon > --- INVENTORY -------- Improved Flight Unit Improved Flight Unit Improved Light Cannon Improved Light Cannon [Rating: 12] Favorites ----------- Power Light Ion Engine Engine Light Ion Engine Power Core Light Nuclear Core Propulsion Light Treads Treads Light Treads Leg Aluminum Leg Wheel Wheel Utility Terrain Scanner Device Terrain Scanner Storage Large Storage Unit Weapon Assault Rifle Energy Gun Beam Rifle Ballistic Gun Assault Rifle Ballistic Cannon Improved Light Cannon Build | -11 -10 -9 ------- Run | Yrd Mat Mat Slots Evolved 2 | . . 2 Power . | . . . Propulsion . | . . . Utility 2 | . . 2 Weapon . | . . . Parts Attached 18 | 6 1 11 Power 2 | 1 . 1 Engine 1 | 1 . . Core 1 | . . 1 Reactor . | . . . Propulsion 5 | 2 . 3 Treads 2 | 2 . . Leg 1 | . . 1 Wheel 2 | . . 2 Hover . | . . . Flight . | . . . Utility 4 | 1 1 2 Device 2 | . 1 1 Storage 2 | 1 . 1 Processor . | . . . Hackware . | . . . Protection . | . . . Artifact . | . . . Weapon 7 | 2 . 5 Energy Gun 1 | . . 1 Energy Cannon . | . . . Ballistic Gun 5 | 2 . 3 Ballistic Cannon 1 | . . 1 Launcher . | . . . Special Weapon . | . . . Impact Weapon . | . . . Slashing Weapon . | . . . Piercing Weapon . | . . . Special Melee Weapon . | . . . Unidentified Prototypes 1 | . . 1 Parts Lost 11 | . . 11 Power 1 | . . 1 Propulsion 4 | . . 4 Utility 1 | . . 1 Weapon 5 | . . 5 Highest Loss Streak 4 | . . 4 To Critical Strikes . | . . . Average Backups 3 | . 1 3 Power . | . . . Propulsion . | . . 1 Utility . | . . . Weapon 2 | . 1 2 Tool/Special . | . . . Unused Backups 4 | . . 4 Power . | . . . Propulsion 2 | . . 2 Utility . | . . . Weapon 2 | . . 2 Tool/Special . | . . . Average Slot Usage (%) 72 | . 98 62 Engine 6 | . 14 3 Core 2 | . . 3 Treads 13 | . 28 7 Wheel 3 | . . 4 Device 10 | . 13 9 Storage 12 | . 14 11 Energy Gun 3 | . . 4 Ballistic Gun 18 | . 28 14 Peak Build Rating 12 | 6 7 12 Average Rating 7 | 4 6 7 On Entrance 4 | . 6 7 Avg Prop Armor Cover (%) . | . . . Naked Turns . | . . . Heaviest Build 35 | 12 13 35 Greatest Support 40 | 40 40 40 Greatest Overweight (x) 8 | . . 8 Average Overweight (x) . | . . 1 Largest Inventory Capacity 15 | 8 8 15 Average Capacity 11 | 6 8 13 Most Carried 6 | 1 2 6 Average Carried 3 | . 1 3 Final Capacity 15 | 8 8 15 Final Carried 4 | 1 2 4 Class Distribution -------------------- 100% | Mutant Dominant Class ---------------- Mutant | -10/Materials Mutant | -9/Materials Resources | -11 -10 -9 ----------- Run | Yrd Mat Mat Matter Collected 735 | 211 70 454 Remotely . | . . . Salvage Created 924 | . 91 833 Parts 55 | . 10 45 Haulers Intercepted 1 | . . 1 Recyclers Shooed 1 | . 1 . Parts Field Recycled . | . . . Retrieved Matter . | . . . Parts Self-Destructed . | . . . Prevented . | . . . Parts Restored . | . . . Kills | -11 -10 -9 ------- Run | Yrd Mat Mat Combat Hostiles Destroyed 23 | . 5 18 Guns 19 | . 5 14 Cannons 3 | . . 3 Classes Destroyed 10 | . 2 8 Worker 1 | . . 1 Tunneler 1 | . . 1 Hauler 1 | . . 1 Recycler 1 | . . 1 Watcher 2 | . 1 1 Swarmer 9 | . 5 4 Grunt 9 | . . 9 Brawler 1 | . . 1 Duelist 1 | . . 1 Sentry 3 | . . 3 Best Kill Streak 5 | . 3 5 Combat Bots Only 4 | . 3 4 Max Kills in Single Turn 1 | . 1 1 Gunslinging . | . . . Exploded . | . . . Melee . | . . . Uniques/NPCs Destroyed . | . . . Combat | -11 -10 -9 -------- Run | Yrd Mat Mat Hostile Shots Fired 196 | . 38 158 Missed 58 | . 2 56 Hits 138 | . 36 102 Melee 3 | . . 3 Projectile 135 | . 36 99 Critical Strikes 4 | . . 4 Damage Taken 1545 | . 275 1270 Core 447 | . 40 407 Absorbed by Shields . | . . . Core Remaining (%) 92 | 100 84 . Volleys Fired 112 | . 20 92 Largest 2 | . 2 2 Hottest 79 | . 40 79 Shots Fired 205 | . 40 165 Gun 193 | . 40 153 Cannon 12 | . . 12 Launcher . | . . . Special . | . . . Kinetic 183 | . 40 143 Thermal 22 | . . 22 Explosive . | . . . Electromagnetic . | . . . Robot Hit Streak 15 | . 5 15 Robot Miss Streak 4 | . 4 3 Penetration Max . | . . . Secondary Targets 2 | . . 2 Max Gunslinging Chain 1 | . . 1 Shots Hit Robots 138 | . 18 120 Core Hits 51 | . 6 45 Critical Kills . | . . . Critical Parts Destroyed 1 | . . 1 Critical Strikes 5 | . . 5 Burn 4 | . . 4 Destroy 1 | . . 1 Melee Attacks . | . . . Impact . | . . . Slashing . | . . . Piercing . | . . . Sneak Attacks . | . . . Combat Hostiles . | . . . Follow-up Attacks . | . . . Damage Inflicted 1609 | . 235 1374 Guns 1445 | . 235 1210 Cannons 164 | . . 164 Explosions . | . . . Melee . | . . . Ramming . | . . . Kinetic 1377 | . 235 1142 Thermal 232 | . . 232 Explosive . | . . . Electromagnetic . | . . . Impact . | . . . Slashing . | . . . Piercing . | . . . Highest Corruption . | . . . Average Corruption . | . . . Corruption Purged . | . . . Corruption Blocked . | . . . Overload Shots . | . . . Overflow Damage . | . . . Projectiles . | . . . Explosions . | . . . Melee . | . . . Knockbacks 4 | . . 4 Impact . | . . . Kinetic 4 | . . 4 Secondary . | . . . Self-Inflicted Damage . | . . . Shots . | . . . Rammed . | . . . Targets Rammed . | . . . Kicked . | . . . Crushed . | . . . Highest Temperature 114 | . . 114 Average Temperature 27 | . . 27 Received Heat Transfer 540 | . . 540 Siege Activations . | . . . Martial Activations . | . . . Shielding Activations . | . . . Robots Disrupted . | . . . Combat Hostiles . | . . . Robots Corrupted . | . . . Combat Hostiles . | . . . Parts Fried . | . . . Impact Corruptions . | . . . Robots Melted 1 | . . 1 Combat Hostiles 1 | . . 1 Parts Melted 2 | . . 2 Heat Transferred 888 | . . 888 Parts Sabotaged . | . . . Parts Stolen . | . . . Parts Stripped . | . . . Power Chain Reactions . | . . . Alert | -11 -10 -9 ------- Run | Yrd Mat Mat Maximum Alert Level 1 | . . 1 Low Security (%) 99 | 100 100 99 Level 1 . | . . . Level 2 . | . . . Level 3 . | . . . Level 4 . | . . . Level 5 . | . . . High Security . | . . . Max Security . | . . . Peak Influence 197 | . 110 197 Initial 27 | . . 27 Average 45 | . 51 47 Influence Increases 682 | . 147 535 Destroy 0b10 Robot/C 460 | . 100 360 Destroy 0b10 Robot/NC 30 | . 5 25 Destroy Leader 96 | . 12 84 Successful Hack 6 | . . 6 Partial Spotted 15 | . . 15 Lose Combat Pursuer 75 | . 30 45 Influence Decreases 485 | . 80 405 Entered New Map 40 | . . 40 Time Decay 355 | . 80 275 Lost Part 90 | . . 90 Squads Dispatched 1 | . . 1 Investigation . | . . . Extermination . | . . . Reinforcement 1 | . . 1 Assault . | . . . Garrison . | . . . Intercept . | . . . Searches Triggered . | . . . Construction Impeded . | . . . Haulers Reinforced . | . . . Active Scanning Responses . | . . . Cargo Convoy Interrupts . | . . . Stealth | -11 -10 -9 --------- Run | Yrd Mat Mat Distress Signals 2 | . . 2 Communications Jammed . | . . . Distress Signals . | . . . Times Spotted 38 | . 9 29 Peak Tracking Total 7 | . 4 7 Tactical Retreats 4 | . 1 3 Traps | -11 -10 -9 ------- Run | Yrd Mat Mat Traps Triggered . | . . . Indirectly . | . . . Trap Hack Attempts . | . . . Triggered . | . . . Disarmed . | . . . Reprogrammed . | . . . Reused . | . . . Traps Extracted . | . . . Installed . | . . . Triggered . | . . . Machines | -11 -10 -9 ---------- Run | Yrd Mat Mat Machines Disabled . | . . . Max in Single Turn . | . . . Machines Repaired . | . . . Machines Dismantled . | . . . Machines Sabotaged . | . . . Overloaded Fab Kills . | . . . Hacking | -11 -10 -9 --------- Run | Yrd Mat Mat Machines Accessed 2 | . 1 1 Terminals 2 | . 1 1 Fabricators . | . . . Repair Stations . | . . . Recycling Units . | . . . Scanalyzers . | . . . Garrison Access . | . . . Total Hacks 5 | . 1 4 Successful 2 | . 1 1 Failed 3 | . . 3 Catastrophic . | . . . Database Lockouts . | . . . Manual 5 | . 1 4 Terminals 5 | . 1 4 Fabricators . | . . . Repair Stations . | . . . Recycling Units . | . . . Scanalyzers . | . . . Garrison Access . | . . . Terminal Hacks . | . . . Fabricator Hacks . | . . . Repair Station Hacks . | . . . Recycling Unit Hacks . | . . . Scanalyzer . | . . . Garrison Access Hacks . | . . . Unauthorized Hacks 2 | . 1 1 Terminals 2 | . 1 1 Operators 2 | . 1 1 Fabricators . | . . . Repair Stations . | . . . Recycling Units . | . . . Scanalyzers . | . . . Garrison Access . | . . . Data Cores Recovered . | . . . Used . | . . . Hacking Detections 1 | . . 1 Full Trace Events . | . . . Feedback Events . | . . . Feedback Blocked . | . . . Robot Schematics Acquired . | . . . Robots Built . | . . . Authchips . | . . . Time . | . . . Total Robot Build Rating . | . . . Part Schematics Acquired . | . . . Parts Built . | . . . Authchips . | . . . Time . | . . . Total Part Build Rating . | . . . Part Studies Acquired . | . . . Parts Repaired . | . . . Time . | . . . Parts Recycled . | . . . Recycled Matter . | . . . Retrieved Matter . | . . . Retrieved Components . | . . . Parts Scanalyzed . | . . . Part Schematics Acquired . | . . . Parts Damaged . | . . . Bothacking | -11 -10 -9 ------------ Run | Yrd Mat Mat Used RIF Installer . | . . . Robots Hacked . | . . . Non-combat . | . . . Combat . | . . . Robot Hacks Applied . | . . . Relay Couplers Released . | . . . Fabnet Peak Effective % . | . . . Robots Rewired . | . . . Allies Hacked . | . . . Hacks Repelled . | . . . Allies | -11 -10 -9 -------- Run | Yrd Mat Mat Total Allies . | . . . Largest Group . | . . . Highest-Rated Group . | . . . Highest-Rated Ally . | . . . Total Orders . | . . . Ally Attacks . | . . . Total Damage . | . . . Kills . | . . . Allies Corrupted . | . . . Allies Melted . | . . . Intel | -11 -10 -9 ------- Run | Yrd Mat Mat Active Infowar (turns) 643 | . 253 390 Terrain 643 | . 253 390 Robot Analysis Total . | . . . Derelict Logs Recovered . | . . . Drone Launches . | . . . Drone Recoveries . | . . . Exploration | -11 -10 -9 ------------- Run | Yrd Mat Mat Turns Passed 1016 | 66 264 686 Spaces Moved 385 | 37 124 224 Core 28 | 2 . 26 Treads 267 | 35 124 108 Legs 22 | . . 22 Wheels 68 | . . 68 Hover . | . . . Flight . | . . . Fastest Speed 50 | 50 160 80 Average Speed 171 | 154 160 181 Slowest Speed 450 | 160 160 450 Overloaded Moves . | . . . Propulsion Burnouts . | . . . Robots Hopped . | . . . Potential Cave-ins . | . . . Cave-ins Triggered . | . . . Exploration Rate (%) 16 | 4 24 21 Regions Visited 2 Branch Regions . Pre-discovered Areas . | . . . Known Exits Taken . | . . . Unknown Exits Taken 2 | 1 1 . Scrap Searched . | . . . Spaces Dug . | . . . Terrain Destroyed . | . . . Melee . | . . . Projectile . | . . . AOE . | . . . Terrain Rammed . | . . . Walls Destroyed . | . . . Machines Disabled . | . . . Actions | -11 -10 -9 --------- Run | Yrd Mat Mat Total 544 | 43 149 352 Wait 15 | . 4 11 Move 383 | 36 123 224 Hop . | . . . Pick Up 6 | 1 1 4 Fast Attach 18 | 6 1 11 Attach 4 | . . 4 Detach 1 | . . 1 Swap 1 | . . 1 Drop 4 | . . 4 Fire 112 | . 20 92 Melee . | . . . Ram . | . . . Kick . | . . . Crush . | . . . Escape Stasis . | . . . Rewire . | . . . Trap . | . . . Miscellaneous . | . . . Route ------- -11/Scrapyard -10/Materials -9/Materials History --------- Turn | Location | Event 7 | -11/Scrapyard | Discovered new exit (range 15) 67 | -11/Scrapyard | Entered Materials 289 | -10/Materials | Discovered new exit (range 16) 308 | -10/Materials | Build established: Mutant 331 | -10/Materials | Entered another Materials area 331 | -9/Materials | Evolved 2 slots: Utility x2 616 | -9/Materials | Lost 4 parts (1p2n1w) 710 | -9/Materials | Core integrity fell below 50% 767 | -9/Materials | Lost 4 parts (1u3w) 893 | -9/Materials | Core integrity fell below 20% 1017 | -9/Materials | Destroyed by G-34 Mercenary with Small Laser Last Messages --------------- 00934_ R-06 Scavenger collects Ion Engine. 00935_ K-01 Serf collects debris. 00942_ Acquired 39 matter. 00956_ O-16 Technician: "IFF HANDSHAKE FAILED. SECURING TERMINAL." 00957_ ALERT: Hostiles spotted, dispatching reinforcements to Terminal M010. 00963_ Destroyed Datajack. 00971_ Wheel destroyed. 00988_ G-34 Mercenary knocked back. 00996_ G-34 Mercenary suffers critical hit (Destroy). 00996_ Destroyed Heat Sink. 00996_ G-34 Mercenary knocked back. 01002_ Hadron Collector disabled. 01005_ G-47 Trooper destroyed. 01006_ Wheel destroyed. 01008_ G-34 Mercenary destroyed. 01010_ B-36 Bruiser destroyed. 01013_ G-34 Mercenary knocked back. Map ----- +----------------------------------------------------+ | ????????????????????????????????????? ## ??????? | | ???????????????????????????????????? # ???????? | | ???????????????????????????????????? ????????? | | ???????????????????????????????????? ?????????? | | ???????????o???????????????????????? ??????????? | | ????????????????????????????????#####+###????????? | | ????????????????????????????????# % =#????????? | | ????????????????????????????????# /]] % #????????? | | ???????????????????????????????## / ]#????????? | | ???????????????????????????????# ] [ #????????? | | ???????????????????????????????## = #??? ????? | | ??????????????????#####?????????# % #??? ????? | | ??????????????????# #?????????# #??? ????? | | ??????????????????# #?????????# #??? ????? | | ??????????????????# #?????????# ! #??? ????? | | ??????????????????# ###########= #??? ????? | | ??????????????????# + *! +== * #??? ????? | | ??????????????????# #################+#??# #???? | | ??????????????????# ########????????# #?## #???? | | ????????? ##########+### #???#????# #??# #???? | | ?????? #????????# #??# #???? | | ?????? T #????????# #??# #???? | | ?????? #????????# #??# #?? ? | | ??????? ###+######+### %*!#???#?#??# #??# #???? | | ??????????????????????####g#####??????# #### ##### | | ??????????????????????# T@%%% #??????# % | | ??????????????????????# /=% ######## # | | ??????????????????????# # # # | | ??????????????????????# # # """ + | | ??????????????????????# # # """ # | | ??????????????????????# " "" # # """ # | | ??????????????????????# """" # # # | | ??????????????????????# """" # *#% # | | ??????????????????????# # * =+ """ # | | ??????????????????????########## *= #= """ # | | ???????????????????????????????# % !# """ % "# | | ???????????????????????????????# = # T# | | ???????????????????????????????# # "# | | ???????????????????????????????# # # | | ???????????????????????????????# # % # | | ???????????????????????????????############## ## | | ?????????????????????????????????##?????????# ## | | ?????????????????????????????????????#?###??# #? | | ????????????????????????????????????#?#??#??# ## | | ???????????????????????????????????#????##?## ## | | ??????????????????????????????????#?????#|## # | | ?????????????????????????????????#??#??#?#%# # | | ?????????????????????????????????????????# # | | ???????????????????????????????????#?##??# # # | | ?????????????????????????????????????#??#### # | +----------------------------------------------------+ Best States ------------- Heat Dissipation 28 Energy Generation 14 Energy Capacity 160 Matter Stores 300 Matter Capacity 300 Sight Range 16 Terrain Scan Range 14 Terrain Scan Density 10 Additional Mass Support 6 Evasion (%) 44 Recoil Reduction 2 Item Schematics ----------------- None Robot Schematics ------------------ None Fabricated ------------ Nothing Repaired ---------- Nothing Studied --------- None Alien Tech Used ----------------- None Achievements -------------- None Challenges ------------ None Game ------ Seed PulseBladeClaymores Manual? 0 Play Time 00:09:15 Cumulative 67.4 hours Start 2025.11.01 @ 20:21:23 End 2025.11.01 @ 20:27:18 Sessions 1 Manual Loads 0 Difficulty Rogue Special Mode None Game No. 151 Rogue 103 Adventurer 48 Explorer 0 Win Type - Total 0 Types 0/0/0/0/0/0/0/0/0/0 Lore% 20 Gallery% 39 Achievement% 23 Wizard Run 0 Options --------- Layout 1 ASCII 0 Keyboard 0 Movement Mouse Keybinds 0 Fullscreen 1 Font 32/SmallcapsGlow Map View 50x35 Zoom Use 0% Tactical HUD 1 Map Filters NONE Filters NONE Steam 1 RUN: 8712c59f-d3de-44cb-b99a-051729299cd1